fUST/lending_fUST_20251004
["ID","MTS","AMOUNT","RATE_DAILY","PERIOD"]
[389116989,1759582272491,-744.57,0.00020547,2]
[389116992,1759582272501,-500.0,0.00020547,2]
[389116994,1759582272511,-645.5876756,0.00020547,2]
[389116996,1759582272521,-500.0,0.00020547,2]
[389116997,1759582272531,-500.0,0.00020547,2]
[389116999,1759582272540,-500.0,0.00020547,2]
[389117001,1759582272549,-151.0,0.00020547,2]
[389117004,1759582272564,-1100.8,0.00020547,2]
[389117007,1759582272579,-151.0,0.00020547,2]
[389117009,1759582272589,-151.0,0.00020547,2]
[389117011,1759582272599,-500.0,0.00020547,2]
[389117013,1759582272609,-500.0,0.00020547,2]
[389117015,1759582272620,-265.86667692,0.00020547,2]
[389117017,1759582272631,-1468.58,0.00020547,2]
[389117019,1759582272641,-500.0,0.00020547,2]
[389117021,1759582272652,-500.0,0.00020547,2]
[389117023,1759582272662,-500.0,0.00020547,2]
[389117025,1759582272672,-500.0,0.00020547,2]
[389117027,1759582272682,-500.0,0.00020547,2]
[389117029,1759582272692,-500.0,0.00020547,2]
[389117031,1759582272702,-1277.48,0.00020547,2]
[389117033,1759582272712,-500.0,0.00020547,2]
[389117035,1759582272725,-785.41,0.00020547,2]
[389117037,1759582272736,-751.7,0.00020547,2]
[389117039,1759582272746,-500.0,0.00020547,2]
[389117041,1759582272756,-500.0,0.00020547,2]
[389117043,1759582272766,-692.47,0.00020547,2]
[389117045,1759582272777,-151.0,0.00020547,2]
[389117047,1759582272787,-500.0,0.00020547,2]
[389117049,1759582272800,-500.0,0.00020547,2]
[389117051,1759582272811,-500.0,0.00020547,2]
[389117053,1759582272820,-151.0,0.00020547,2]
[389117055,1759582272830,-500.0,0.00020547,2]
[389117057,1759582272840,-500.0,0.00020547,2]
[389117059,1759582272850,-151.0,0.00020547,2]
[389117061,1759582272859,-500.0,0.00020547,2]
[389117063,1759582272870,-151.0,0.00020547,2]
[389117065,1759582272879,-1597.27,0.00020547,2]
[389117067,1759582272889,-549.33,0.00020547,2]
[389117069,1759582272899,-151.0,0.00020547,2]
[389117071,1759582272908,-500.0,0.00020547,2]
[389117073,1759582272918,-500.0,0.00020547,2]
[389117075,1759582272928,-151.0,0.00020547,2]
[389117077,1759582272938,-1444.29,0.00020547,2]
[389117079,1759582272948,-762.96,0.00020547,2]
[389117081,1759582272957,-3987.82,0.00020547,2]
[389117083,1759582272967,-500.0,0.00020547,2]
[389117085,1759582272977,-2704.0,0.00020547,2]
[389117087,1759582272986,-210.206214,0.00020547,2]
[389117089,1759582272996,-210.206214,0.00020547,2]
[389117091,1759582273005,-899.46,0.00020547,2]
[389117093,1759582273015,-297.76320921,0.00020547,2]
[389117095,1759582273025,-210.206214,0.00020547,2]
[389117097,1759582273036,-210.206204,0.00020547,2]
[389117099,1759582273046,-500.0,0.00020547,2]
[389117101,1759582273056,-1061.231118,0.00020547,2]
[389117103,1759582273066,-1061.231118,0.00020547,2]
[389117105,1759582273075,-500.0,0.00020547,2]
[389117107,1759582273085,-1061.231118,0.00020547,2]
[389117109,1759582273094,-232.342074,0.00020547,2]
[389117111,1759582273104,-1061.231109,0.00020547,2]
[389117113,1759582273114,-889.58,0.00020547,2]
[389117115,1759582273124,-232.342074,0.00020547,2]
[389117117,1759582273133,-500.0,0.00020547,2]
[389117119,1759582273142,-970.24,0.00020547,2]
[389117121,1759582273152,-890.79,0.00020547,2]
[389117123,1759582273161,-232.342074,0.00020547,2]
[389117125,1759582273171,-500.0,0.00020547,2]
[389117127,1759582273182,-560.22,0.00020547,2]
[389117130,1759582273198,-232.342078,0.00020547,2]
[389117132,1759582273212,-509.79,0.00020547,2]
[389117134,1759582273222,-850.99,0.00020547,2]
[389117136,1759582273233,-1111.72,0.00020547,2]
[389117138,1759582273243,-752.66,0.00020547,2]
[389117140,1759582273254,-633.91,0.00020547,2]
[389117142,1759582273264,-1046.13,0.00020547,2]
[389117144,1759582273274,-2794.99,0.00020547,2]
[389117146,1759582273284,-500.0,0.00020547,2]
[389117148,1759582273294,-1659.91,0.00020547,2]
[389117149,1759582273304,-500.0,0.00020547,2]
[389117150,1759582273314,-991.41,0.00020547,2]
[389117151,1759582273324,-500.0,0.00020547,2]
[389117152,1759582273333,-863.73,0.00020547,2]
[389117153,1759582273343,-580.2,0.00020547,2]
[389117154,1759582273353,-500.0,0.00020547,2]
[389117155,1759582273364,-500.0,0.00020547,2]
[389117156,1759582273374,-151.0,0.00020547,2]
[389117157,1759582273384,-500.0,0.00020547,2]
[389117158,1759582273393,-1170.5,0.00020547,2]
[389117159,1759582273404,-190.96123,0.00020547,2]
[389117160,1759582273413,-959.77,0.00020547,2]
[389117161,1759582273422,-190.96123,0.00020547,2]
[389117162,1759582273432,-250.420683,0.00020547,2]
[389117163,1759582273441,-190.96123,0.00020547,2]
[389117164,1759582273451,-966.58,0.00020547,2]
[389117165,1759582273461,-500.0,0.00020547,2]
[389117166,1759582273470,-179.749958,0.00020547,2]
[389117167,1759582273480,-190.961229,0.00020547,2]
[389117168,1759582273491,-179.749958,0.00020547,2]
[389117169,1759582273500,-500.0,0.00020547,2]
[389117170,1759582273510,-500.0,0.00020547,2]
[389117171,1759582273520,-500.0,0.00020547,2]
[389117172,1759582273530,-179.749958,0.00020547,2]
[389117173,1759582273540,-179.749948,0.00020547,2]
[389117174,1759582273550,-654.0,0.00020547,2]
[389117176,1759582273559,-2612.01,0.00020547,2]
[389117178,1759582273569,-500.0,0.00020547,2]
[389117180,1759582273580,-500.0,0.00020547,2]
[389117182,1759582273589,-810.31,0.00020547,2]
[389117184,1759582273599,-438.93159,0.00020547,2]
[389117186,1759582273610,-438.93159,0.00020547,2]
[389117187,1759582273619,-438.93159,0.00020547,2]
[389117190,1759582273630,-500.0,0.00020547,2]
[389117192,1759582273640,-696.23,0.00020547,2]
[389117194,1759582273650,-438.931593,0.00020547,2]
[389117196,1759582273660,-500.0,0.00020547,2]
[389117198,1759582273671,-500.0,0.00020547,2]
[389117200,1759582273681,-500.0,0.00020547,2]
[389117202,1759582273691,-151.0,0.00020547,2]
[389117204,1759582273701,-151.0,0.00020547,2]
[389117206,1759582273711,-612.81,0.00020547,2]
[389117208,1759582273724,-1207.67,0.00020547,2]
[389117210,1759582273735,-500.0,0.00020547,2]
[389117212,1759582273744,-435.065684,0.00020547,2]
[389117214,1759582273754,-435.065684,0.00020547,2]
[389117216,1759582273764,-435.065684,0.00020547,2]
[389117218,1759582273774,-804.82,0.00020547,2]
[389117220,1759582273783,-1881.62,0.00020547,2]
[389117222,1759582273794,-5135.51,0.00020547,2]
[389117224,1759582273808,-422.99749966,0.00020547,2]
[389117226,1759582273818,-435.065682,0.00020547,2]
[389117228,1759582273828,-944.8,0.00020547,2]
[389117230,1759582273837,-500.0,0.00020547,2]
[389117232,1759582273847,-151.0,0.00020547,2]
[389117234,1759582273857,-151.0,0.00020547,2]
[389117236,1759582273867,-151.0,0.00020547,2]
[389117238,1759582273877,-151.0,0.00020547,2]
[389117241,1759582273888,-151.0,0.00020547,2]
[389117243,1759582273899,-1075.58,0.00020547,2]
[389117245,1759582273908,-238.578283,0.00020547,2]
[389117246,1759582273918,-2716.88,0.00020547,2]
[389117249,1759582273928,-500.0,0.00020547,2]
[389117260,1759582274021,-1462.49,0.00020547,2]
[389117262,1759582274031,-786.08,0.00020547,2]
[389117264,1759582274040,-151.0,0.00020547,2]
[389117266,1759582274051,-151.0,0.00020547,2]
[389117267,1759582274060,-500.0,0.00020547,2]
[389117270,1759582274071,-183.99382041,0.00020547,2]
[389117272,1759582274081,-500.0,0.00020547,2]
[389117274,1759582274091,-511.28,0.00020547,2]
[389117276,1759582274101,-500.0,0.00020547,2]
[389117278,1759582274111,-1047.68,0.00020547,2]
[389117279,1759582274119,-1301.49,0.00020547,2]
[389117282,1759582274129,-500.0,0.00020547,2]
[389117283,1759582274138,-841.67,0.00020547,2]
[389117285,1759582274147,-500.0,0.00020547,2]
[389117287,1759582274157,-970.1,0.00020547,2]
[389117289,1759582274167,-500.0,0.00020547,2]
[389117291,1759582274176,-531.12,0.00020547,2]
[389117293,1759582274185,-2278.95,0.00020547,2]
[389117295,1759582274194,-3686.13,0.00020547,2]
[389117297,1759582274203,-500.0,0.00020547,2]
[389117299,1759582274212,-500.0,0.00020547,2]
[389117301,1759582274221,-585.68,0.00020547,2]
[389117303,1759582274230,-2796.07,0.00020547,2]
[389117305,1759582274239,-1219.25,0.00020547,2]
[389117307,1759582274249,-500.0,0.00020547,2]
[389117309,1759582274258,-500.0,0.00020547,2]
[389117311,1759582274266,-1830.54,0.00020547,2]
[389117313,1759582274275,-500.0,0.00020547,2]
[389117315,1759582274284,-500.0,0.00020547,2]
[389117317,1759582274293,-500.0,0.00020547,2]
[389117319,1759582274302,-500.0,0.00020547,2]
[389117321,1759582274311,-4461.67,0.00020547,2]
[389117323,1759582274320,-500.0,0.00020547,2]
[389117325,1759582274329,-500.0,0.00020547,2]
[389117327,1759582274339,-622.76,0.00020547,2]
[389117329,1759582274348,-1711.92,0.00020547,2]
[389117331,1759582274357,-1288.58,0.00020547,2]
[389117333,1759582274367,-898.81,0.00020547,2]
[389117335,1759582274377,-500.0,0.00020547,2]
[389117337,1759582274386,-155.0,0.00020561,2]
[389117339,1759582274395,-168.0,0.00020583,2]
[389117341,1759582274404,-639.03316648,0.00020583,2]
[389117343,1759582274414,-151.0,0.00020583,2]
[389117345,1759582274423,-500.0,0.00020583,2]
[389117347,1759582274432,-500.0,0.00020583,2]
[389117349,1759582274441,-151.0,0.00020583,2]
[389117351,1759582274449,-151.0,0.00020583,2]
[389117353,1759582274458,-500.0,0.00020583,2]
[389117355,1759582274467,-151.0,0.00020583,2]
[389117357,1759582274476,-151.0,0.00020583,2]
[389117358,1759582274485,-500.0,0.00020583,2]
[389117360,1759582274494,-500.0,0.00020583,2]
[389117362,1759582274504,-151.0,0.00020583,2]
[389117364,1759582274513,-151.0,0.00020583,2]
[389117366,1759582274522,-500.0,0.00020583,2]
[389117368,1759582274531,-151.0,0.00020583,2]
[389117370,1759582274540,-151.0,0.00020583,2]
[389117372,1759582274549,-151.0,0.00020583,2]
[389117374,1759582274559,-500.0,0.00020583,2]
[389117376,1759582274568,-500.0,0.00020583,2]
[389117378,1759582274579,-151.0,0.00020583,2]
[389117380,1759582274588,-500.0,0.00020583,2]
[389117382,1759582274598,-151.0,0.00020583,2]
[389117384,1759582274608,-1395.0,0.00020583,2]
[389117386,1759582274617,-619.31060063,0.00020583,2]
[389117388,1759582274626,-500.0,0.00020583,2]
[389117390,1759582274636,-500.0,0.00020583,2]
[389117392,1759582274645,-500.0,0.00020583,2]
[389117394,1759582274655,-500.0,0.00020583,2]
[389117396,1759582274664,-151.17647032,0.00020583,2]
[389117399,1759582274682,-535.44778959,0.00020583,2]
[389117401,1759582274694,-500.0,0.00020583,2]
[389117403,1759582274704,-500.0,0.00020583,2]
[389117406,1759582274715,-151.0,0.00020583,2]
[389117408,1759582274727,-294.0,0.00020584,2]
[389117410,1759582274737,-214.3763659,0.00020597,2]
[389117412,1759582274747,-151.0,0.0002061,2]
[389117414,1759582274756,-151.0,0.0002061,2]
[389117416,1759582274767,-151.0,0.0002061,2]
[389117418,1759582274777,-151.0,0.0002061,2]
[389117419,1759582274788,-151.0,0.0002061,2]
[389117421,1759582274798,-151.0,0.0002061,2]
[389117424,1759582274809,-290.435646,0.0002061,2]
[389117426,1759582274819,-151.0,0.0002061,2]
[389117428,1759582274829,-151.0,0.0002061,2]
[389117430,1759582274839,-151.0,0.0002061,2]
[389117432,1759582274848,-151.0,0.00020611,2]
[389117434,1759582274858,-237.284514,0.00020611,2]
[389117436,1759582274869,-377.804729,0.00020611,2]
[389117438,1759582274879,-377.804729,0.00020611,2]
[389117440,1759582274889,-377.804729,0.00020611,2]
[389117442,1759582274899,-421.910071,0.00020611,2]
[389117444,1759582274910,-421.910071,0.00020611,2]
[389117446,1759582274920,-151.0,0.00020611,2]
[389117448,1759582274929,-421.910071,0.00020611,2]
[389117450,1759582274939,-151.0,0.00020611,2]
[389117452,1759582274949,-377.804722,0.00020611,2]
[389117454,1759582274959,-421.910078,0.00020611,2]
[389117456,1759582274970,-301.866018,0.00020611,2]
[389117458,1759582274980,-151.0,0.00020611,2]
[389117460,1759582274990,-151.0,0.00020611,2]
[389117462,1759582275000,-151.0,0.00020611,2]
[389117465,1759582275010,-151.0,0.00020611,2]
[389117467,1759582275021,-151.0,0.00020611,2]
[389117469,1759582275031,-151.0,0.00020611,2]
[389117471,1759582275042,-558.308136,0.00020611,2]
[389117473,1759582275052,-558.308136,0.00020611,2]
[389117475,1759582275062,-558.308136,0.00020611,2]
[389117477,1759582275073,-558.308145,0.00020611,2]
[389117479,1759582275084,-2043.1455856,0.00020673,2]
[389117481,1759582275094,-2406.23739494,0.00020677,2]
[389117483,1759582275104,-294.0,0.0002069,2]
[389117485,1759582275114,-168.0,0.00020716,2]
[389117488,1759582275125,-1000.0,0.00020719,2]
[389117490,1759582275135,-1000.0,0.00020719,2]
[389117492,1759582275145,-607.66826689,0.00020719,2]
[389117494,1759582275155,-1000.0,0.00020719,2]
[389117496,1759582275165,-1000.0,0.00020719,2]
[389117498,1759582275175,-1000.0,0.00020719,2]
[389117500,1759582275185,-1000.0,0.00020719,2]
[389117502,1759582275195,-1000.0,0.00020719,2]
[389117504,1759582275204,-1000.0,0.00020719,2]
[389117506,1759582275214,-1000.0,0.00020719,2]
[389117508,1759582275223,-1000.0,0.00020719,2]
[389117510,1759582275233,-1000.0,0.00020719,2]
[389117512,1759582275244,-1000.0,0.00020719,2]
[389117514,1759582275253,-1000.0,0.00020719,2]
[389117516,1759582275263,-1000.0,0.00020719,2]
[389117518,1759582275274,-1000.0,0.00020719,2]
[389117521,1759582275284,-1000.0,0.00020719,2]
[389117523,1759582275294,-1000.0,0.00020719,2]
[389117525,1759582275303,-1099.57751103,0.00020719,2]
[389117527,1759582275313,-1000.0,0.00020719,2]
[389117529,1759582275323,-1000.0,0.00020719,2]
[389117531,1759582275333,-1000.0,0.00020719,2]
[389117533,1759582275343,-1000.0,0.00020719,2]
[389117535,1759582275353,-1000.0,0.00020719,2]
[389117537,1759582275363,-1000.0,0.00020719,2]
[389117539,1759582275374,-151.0,0.00020721,2]
[389117541,1759582275383,-151.0,0.00020721,2]
[389117544,1759582275393,-151.0,0.00020721,2]
[389117546,1759582275403,-280.118482,0.00020721,2]
[389117548,1759582275412,-151.586398,0.00020721,2]
[389117550,1759582275422,-151.0,0.00020721,2]
[389117552,1759582275432,-151.0,0.00020721,2]
[389117553,1759582275441,-151.0,0.00020721,2]
[389117556,1759582275451,-151.0,0.00020721,2]
[389117558,1759582275461,-1000.0,0.00020722,2]
[389117560,1759582275471,-502.11309863,0.00020737,2]
[389117562,1759582275480,-1000.0,0.00020737,2]
[389117564,1759582275490,-1000.0,0.00020737,2]
[389117566,1759582275500,-1000.0,0.00020737,2]
[389117568,1759582275509,-1000.0,0.00020737,2]
[389117570,1759582275519,-1000.0,0.00020737,2]
[389117572,1759582275529,-1000.0,0.00020737,2]
[389117574,1759582275540,-1500.0,0.00020765,2]
[389117576,1759582275550,-1500.0,0.00020765,2]
[389117578,1759582275559,-1500.0,0.00020765,2]
[389117580,1759582275569,-1008.77884162,0.00020765,2]
[389117582,1759582275579,-500.0,0.00020784,2]
[389117584,1759582275588,-1550.27627915,0.00020816,2]
[389117586,1759582275598,-2000.0,0.00020816,2]
[389117588,1759582275608,-2015.50592954,0.00020816,2]
[389117590,1759582275618,-776.88669335,0.00020816,2]
[389117592,1759582275628,-2000.0,0.00020816,2]
[389117595,1759582275638,-2000.0,0.00020816,2]
[389117597,1759582275649,-2000.0,0.00020816,2]
[389117599,1759582275658,-2000.0,0.00020816,2]
[389117601,1759582275668,-394.70114169,0.00020816,2]
[389117603,1759582275678,-2000.0,0.00020816,2]
[389117605,1759582275687,-2000.0,0.00020816,2]
[389117607,1759582275697,-1000.0,0.00020821,2]
[389117609,1759582275706,-500.0,0.00020821,2]
[389117611,1759582275718,-1129.15,0.00020821,2]
[389117613,1759582275728,-500.0,0.00020821,2]
[389117615,1759582275739,-500.0,0.00020821,2]
[389117617,1759582275748,-500.0,0.00020821,2]
[389117619,1759582275758,-500.0,0.00020821,2]
[389117621,1759582275767,-500.0,0.00020821,2]
[389117623,1759582275777,-500.0,0.00020821,2]
[389117625,1759582275787,-500.0,0.00020821,2]
[389117627,1759582275798,-151.334355,0.00020821,2]
[389117629,1759582275807,-500.0,0.00020821,2]
[389117631,1759582275817,-500.0,0.00020821,2]
[389117632,1759582275827,-635.33,0.00020821,2]
[389117633,1759582275836,-151.0,0.00020821,2]
[389117634,1759582275846,-552.57,0.00020821,2]
[389117635,1759582275855,-734.82,0.00020821,2]
[389117636,1759582275865,-500.0,0.00020821,2]
[389117637,1759582275875,-500.0,0.00020821,2]
[389117638,1759582275884,-563.89,0.00020821,2]
[389117639,1759582275894,-693.1,0.00020821,2]
[389117641,1759582275904,-500.0,0.00020821,2]
[389117643,1759582275914,-553.96,0.00020821,2]
[389117645,1759582275924,-667.64,0.00020821,2]
[389117647,1759582275934,-151.0,0.00020821,2]
[389117649,1759582275944,-500.0,0.00020821,2]
[389117651,1759582275954,-151.0,0.00020821,2]
[389117653,1759582275964,-151.0,0.00020821,2]
[389117655,1759582275974,-500.0,0.00020821,2]
[389117657,1759582275983,-927.47,0.00020821,2]
[389117659,1759582275994,-500.0,0.00020821,2]
[389117662,1759582276003,-500.0,0.00020821,2]
[389117664,1759582276012,-882.4,0.00020821,2]
[389117666,1759582276022,-500.0,0.00020821,2]
[389117668,1759582276032,-500.0,0.00020821,2]
[389117670,1759582276042,-500.0,0.00020821,2]
[389117672,1759582276052,-500.0,0.00020821,2]
[389117674,1759582276062,-899.57,0.00020821,2]
[389117676,1759582276072,-177.53501071,0.00020821,2]
[389117678,1759582276082,-151.0,0.00020821,2]
[389117680,1759582276092,-500.0,0.00020821,2]
[389117682,1759582276102,-2623.04,0.00020821,2]
[389117684,1759582276112,-500.0,0.00020821,2]
[389117687,1759582276122,-151.0,0.00020821,2]
[389117689,1759582276132,-151.0,0.00020821,2]
[389117691,1759582276142,-239.973565,0.00020821,2]
[389117693,1759582276152,-500.0,0.00020821,2]
[389117695,1759582276161,-640.83,0.00020821,2]
[389117697,1759582276171,-500.0,0.00020821,2]
[389117699,1759582276180,-151.0,0.00020821,2]
[389117701,1759582276191,-151.0,0.00020821,2]
[389117703,1759582276200,-151.0,0.00020821,2]
[389117705,1759582276210,-151.0,0.00020821,2]
[389117707,1759582276220,-151.0,0.00020821,2]
[389117709,1759582276230,-1310.74,0.00020821,2]
[389117711,1759582276240,-151.0,0.00020821,2]
[389117713,1759582276250,-151.0,0.00020821,2]
[389117715,1759582276260,-151.0,0.00020821,2]
[389117717,1759582276271,-749.84,0.00020821,2]
[389117719,1759582276282,-151.0,0.00020821,2]
[389117721,1759582276292,-500.0,0.00020821,2]
[389117723,1759582276303,-2382.25,0.00020821,2]
[389117726,1759582276313,-500.0,0.00020821,2]
[389117728,1759582276323,-1283.05,0.00020821,2]
[389117730,1759582276332,-707.87,0.00020821,2]
[389117732,1759582276342,-500.0,0.00020821,2]
[389117734,1759582276353,-500.0,0.00020821,2]
[389117736,1759582276363,-876.9,0.00020821,2]
[389117738,1759582276373,-904.32,0.00020821,2]
[389117740,1759582276383,-153.349514,0.00020821,2]
[389117742,1759582276393,-500.0,0.00020821,2]
[389117744,1759582276403,-500.0,0.00020821,2]
[389117746,1759582276413,-185.971397,0.00020821,2]
[389117748,1759582276423,-185.971397,0.00020821,2]
[389117750,1759582276432,-500.0,0.00020821,2]
[389117752,1759582276442,-185.971397,0.00020821,2]
[389117754,1759582276452,-185.971397,0.00020821,2]
[389117757,1759582276462,-542.11,0.00020821,2]
[389117759,1759582276472,-151.0,0.00020821,2]
[389117761,1759582276482,-199.068904,0.00020821,2]
[389117763,1759582276492,-151.0,0.00020821,2]
[389117765,1759582276503,-533.70716303,0.00020821,2]
[389117767,1759582276512,-271.261225,0.00020821,2]
[389117769,1759582276522,-271.261225,0.00020821,2]
[389117771,1759582276531,-271.261225,0.00020821,2]
[389117773,1759582276542,-500.0,0.00020821,2]
[389117775,1759582276552,-271.261225,0.00020821,2]
[389117777,1759582276562,-151.0,0.00020821,2]
[389117779,1759582276572,-151.0,0.00020821,2]
[389117781,1759582276582,-1143.82,0.00020821,2]
[389117783,1759582276594,-151.0,0.00020821,2]
[389117786,1759582276604,-151.0,0.00020821,2]
[389117788,1759582276614,-1168.54,0.00020821,2]
[389117790,1759582276626,-500.0,0.00020821,2]
[389117792,1759582276635,-500.0,0.00020821,2]
[389117794,1759582276646,-500.92,0.00020821,2]
[389117796,1759582276655,-663.79,0.00020821,2]
[389117798,1759582276665,-500.0,0.00020821,2]
[389117800,1759582276675,-2928.1,0.00020821,2]
[389117802,1759582276685,-753.15,0.00020821,2]
[389117804,1759582276695,-1528.06,0.00020821,2]
[389117806,1759582276705,-500.0,0.00020821,2]
[389117808,1759582276717,-1221.58,0.00020821,2]
[389117810,1759582276728,-500.0,0.00020821,2]
[389117812,1759582276738,-520.37,0.00020821,2]
[389117814,1759582276748,-562.82,0.00020821,2]
[389117816,1759582276758,-500.0,0.00020821,2]
[389117818,1759582276768,-500.0,0.00020821,2]
[389117820,1759582276779,-586.62,0.00020821,2]
[389117822,1759582276790,-1226.46,0.00020821,2]
[389117824,1759582276802,-500.0,0.00020821,2]
[389117826,1759582276812,-500.0,0.00020821,2]
[389117828,1759582276823,-500.0,0.00020821,2]
[389117830,1759582276832,-1546.54,0.00020821,2]
[389117832,1759582276843,-500.0,0.00020821,2]
[389117834,1759582276853,-640.45,0.00020821,2]
[389117836,1759582276863,-514.22,0.00020821,2]
[389117838,1759582276872,-577.75,0.00020821,2]
[389117840,1759582276882,-165.579866,0.00020821,2]
[389117842,1759582276892,-236.501964,0.00020821,2]
[389117844,1759582276902,-165.579866,0.00020821,2]
[389117846,1759582276912,-621.59,0.00020821,2]
[389117849,1759582276923,-236.501964,0.00020821,2]
[389117851,1759582276933,-165.579866,0.00020821,2]
[389117853,1759582276943,-236.501964,0.00020821,2]
[389117855,1759582276952,-165.579874,0.00020821,2]
[389117857,1759582276961,-236.501957,0.00020821,2]
[389117859,1759582276970,-878.25,0.00020821,2]
[389117861,1759582276980,-500.0,0.00020821,2]
[389117863,1759582276990,-532.16,0.00020821,2]
[389117865,1759582276999,-500.0,0.00020821,2]
[389117867,1759582277009,-500.0,0.00020821,2]
[389117869,1759582277020,-151.0,0.00020821,2]
[389117871,1759582277030,-151.0,0.00020821,2]
[389117873,1759582277040,-151.0,0.00020821,2]
[389117875,1759582277049,-500.0,0.00020821,2]
[389117878,1759582277060,-500.0,0.00020821,2]
[389117896,1759582277219,-2202.03,0.00020821,2]
[389117898,1759582277229,-518.58,0.00020821,2]
[389117900,1759582277239,-1787.61,0.00020821,2]
[389117902,1759582277248,-500.0,0.00020821,2]
[389117904,1759582277258,-636.3,0.00020821,2]
[389117906,1759582277267,-151.0,0.00020821,2]
[389117908,1759582277276,-151.0,0.00020821,2]
[389117910,1759582277286,-657.33,0.00020821,2]
[389117913,1759582277296,-500.0,0.00020821,2]
[389117914,1759582277306,-500.0,0.00020821,2]
[389117917,1759582277315,-500.0,0.00020821,2]
[389117918,1759582277325,-793.93,0.00020821,2]
[389117920,1759582277335,-500.0,0.00020821,2]
[389117923,1759582277344,-2432.08,0.00020821,2]
[389117924,1759582277353,-500.0,0.00020821,2]
[389117926,1759582277361,-744.57,0.00020821,2]
[389117929,1759582277371,-500.0,0.00020821,2]
[389117931,1759582277381,-500.0,0.00020821,2]
[389117933,1759582277391,-500.0,0.00020821,2]
[389117935,1759582277402,-500.0,0.00020821,2]
[389117937,1759582277411,-151.0,0.00020821,2]
[389117939,1759582277420,-1100.8,0.00020821,2]
[389117941,1759582277429,-151.0,0.00020821,2]
[389117943,1759582277439,-151.0,0.00020821,2]
[389117945,1759582277448,-500.0,0.00020821,2]
[389117947,1759582277457,-500.0,0.00020821,2]
[389117949,1759582277467,-1468.58,0.00020821,2]
[389117951,1759582277476,-500.0,0.00020821,2]
[389117953,1759582277487,-500.0,0.00020821,2]
[389117955,1759582277496,-500.0,0.00020821,2]
[389117957,1759582277507,-500.0,0.00020821,2]
[389117959,1759582277516,-500.0,0.00020821,2]
[389117961,1759582277526,-1277.48,0.00020821,2]
[389117963,1759582277535,-500.0,0.00020821,2]
[389117965,1759582277545,-785.41,0.00020821,2]
[389117967,1759582277554,-751.7,0.00020821,2]
[389117969,1759582277563,-500.0,0.00020821,2]
[389117971,1759582277572,-500.0,0.00020821,2]
[389117973,1759582277581,-692.47,0.00020821,2]
[389117975,1759582277590,-500.0,0.00020821,2]
[389117977,1759582277599,-500.0,0.00020821,2]
[389117979,1759582277609,-500.0,0.00020821,2]
[389117981,1759582277618,-500.0,0.00020821,2]
[389117983,1759582277627,-500.0,0.00020821,2]
[389117985,1759582277636,-500.0,0.00020821,2]
[389117987,1759582277646,-1597.27,0.00020821,2]
[389117989,1759582277656,-549.33,0.00020821,2]
[389117991,1759582277665,-500.0,0.00020821,2]
[389117993,1759582277674,-500.0,0.00020821,2]
[389117995,1759582277683,-1444.29,0.00020821,2]